bitfinex/quotes_ETHUSD_20240722
["timestamp","ask_amount","ask_price","bid_price","bid_amount"]
[1721663424231,2.2507,3469.0,3468.3,3.288319]
[1721663424437,2.2507,3469.0,3468.7,2.88287]
[1721663425299,2.2507,3469.0,3468.8,2.88283]
[1721663425496,0.60326724,3469.2,3468.4,3.91234977]
[1721663425723,3.24900086,3469.4,3468.4,3.91234977]
[1721663425724,0.60326724,3469.3,3468.9,2.88275]
[1721663426244,2.94736724,3469.4,3468.7,2.88287]
[1721663426425,3.04926724,3469.5,3469.3,2.88235]
[1721663427399,3.48564724,3469.4,3468.6,2.88293]
[1721663427604,2.446,3469.0,3468.7,2.88288]
[1721663428014,2.446,3469.0,3468.8,2.88283]
[1721663428232,2.446,3469.0,3468.9,2.88275]
[1721663428841,2.89286724,3469.2,3468.9,2.88275]
[1721663429052,2.89286724,3469.2,3469.1,2.88259]
[1721663429204,1.51233344,3469.6,3469.2,2.8825]
[1721663429205,0.60326724,3469.4,3469.2,2.8825]
[1721663429399,3.19450086,3469.6,3469.4,2.88234]
[1721663429400,0.60326724,3469.6,3469.4,2.88234]
[1721663429717,0.60326724,3469.7,3469.6,2.88217]
[1721663429930,0.60326724,3469.8,3469.7,2.88209]
[1721663430630,0.60326724,3469.9,3469.8,5.76402]
[1721663431008,0.60326724,3470.0,3469.9,5.76384]
[1721663431222,0.60326724,3470.0,3469.8,0.48139265]
[1721663431223,0.60326724,3470.1,3470.0,5.76368]
[1721663431623,0.60326724,3470.1,3470.0,2.88184]
[1721663431961,0.60326724,3470.1,3469.1,4.23222281]
[1721663432179,2.446,3469.9,3469.4,2.88227]
[1721663432476,2.446,3469.5,3469.1,2.88258]
[1721663432836,2.446,3469.5,3469.1,2.88252]
[1721663433053,0.60326724,3469.6,3469.4,2.88234]
[1721663433251,3.33820086,3469.8,3469.4,2.88234]
[1721663433252,3.03656724,3469.8,3469.4,2.88234]
[1721663433456,0.60326724,3469.7,3468.8,2.88283]
[1721663433777,0.60326724,3469.7,3469.4,2.88227]
[1721663434080,0.60326724,3469.7,3469.5,2.88219]
[1721663434374,0.60326724,3469.7,3469.6,2.88217]
[1721663434541,0.60326724,3469.7,3469.4,2.88226]
[1721663434743,0.60326724,3469.7,3469.2,2.88246]
[1721663434943,0.60326724,3469.7,3469.2,2.88244]
[1721663435330,0.60326724,3469.6,3469.2,2.88244]
[1721663435560,0.90490086,3469.7,3469.0,2.88265]
[1721663435561,3.04926724,3469.5,3469.0,2.8826]
[1721663435766,3.04926724,3469.5,3468.8,2.88277]
[1721663435767,2.446,3469.1,3468.8,2.88277]
[1721663436075,2.446,3469.1,3468.8,2.88276]
[1721663436430,2.446,3469.1,3468.8,2.88278]
[1721663438095,2.3119,3469.2,3469.0,2.8826]
[1721663438233,0.60326724,3469.3,3469.0,2.8826]
[1721663438566,5.38606724,3469.5,3469.2,2.8825]
[1721663438972,0.08171699,3469.4,3469.0,2.8826]
[1721663439278,0.08171699,3469.4,3469.3,5.76484]
[1721663440080,0.08171699,3469.4,3469.3,2.88242]
[1721663440936,0.08171699,3469.4,3469.3,5.76484]
[1721663441784,0.08171699,3469.4,3469.3,2.88242]
[1721663442135,0.08171699,3469.4,3468.9,2.88267]
[1721663442335,2.398,3469.3,3469.0,5.88266]
[1721663442568,2.398,3469.3,3469.1,2.88259]
[1721663442775,2.398,3469.3,3469.2,5.8825]
[1721663443178,0.08171699,3469.4,3469.2,5.88245]
[1721663443379,0.08171699,3469.4,3469.3,2.88242]
[1721663443539,0.08171699,3469.4,3469.0,3.0]
[1721663443740,0.08171699,3469.4,3469.3,2.88242]
[1721663444285,0.08171699,3469.4,3469.1,2.88257]
[1721663444479,0.08171699,3469.4,3469.2,3.0]
[1721663444683,0.08171699,3469.4,3468.7,2.88288]
[1721663444989,0.08171699,3469.4,3468.8,5.88279]
[1721663445285,0.85623269,3469.4,3468.8,5.88279]
[1721663445642,0.85623269,3469.4,3469.0,2.88267]
[1721663445971,0.08171699,3469.4,3468.9,2.88275]
[1721663446183,0.08171699,3469.4,3469.1,2.88255]
[1721663446592,0.08171699,3469.4,3469.3,5.76484]
[1721663447498,0.08171699,3469.4,3469.3,2.88242]
[1721663448052,0.08171699,3469.4,3469.3,5.76484]
[1721663448293,0.08171699,3469.4,3469.3,2.88242]
[1721663448468,0.08171699,3469.4,3469.3,5.76484]
[1721663448665,0.08171699,3469.4,3469.3,6.629589]
[1721663449253,0.08171699,3469.4,3469.3,3.747169]
[1721663449469,0.08171699,3469.4,3469.3,6.629589]
[1721663449955,0.08171699,3469.4,3469.3,3.747169]
[1721663450267,2.38431699,3469.4,3469.0,2.88262]
[1721663450579,2.38431699,3469.4,3469.1,3.0]
[1721663450751,2.38431699,3469.4,3468.8,2.88284]
[1721663450752,5.26665699,3469.4,3468.9,3.0]
[1721663450957,2.38431699,3469.4,3468.9,3.0]
[1721663451702,2.38431699,3469.4,3468.9,5.8827]
[1721663451853,2.38431699,3469.4,3469.0,2.88263]
[1721663452056,2.38431699,3469.4,3469.1,5.88255]
[1721663452391,2.38431699,3469.4,3469.1,5.88254]
[1721663453810,2.38431699,3469.4,3469.1,3.0]
[1721663453976,2.98908904,3469.4,3469.1,5.88258]
[1721663454180,0.08171699,3469.4,3469.3,5.76484]
[1721663454907,0.08171699,3469.4,3469.3,6.58019883]
[1721663455209,0.08171699,3469.4,3469.3,9.58019883]
[1721663455765,0.08171699,3469.4,3469.3,12.46261883]
[1721663456107,0.08171699,3469.4,3469.3,13.01261883]
[1721663457917,0.08171699,3469.4,3469.3,9.58019883]
[1721663458274,0.08171699,3469.4,3469.3,5.88242]
[1721663458773,0.08171699,3469.4,3469.3,3.0]
[1721663459509,0.08171699,3469.4,3469.3,5.88242]
[1721663459808,0.08171699,3469.4,3469.3,3.0]
[1721663459983,0.08171699,3469.4,3469.1,2.88258]
[1721663460183,0.08171699,3469.4,3469.2,3.0]
[1721663460519,0.08171699,3469.4,3469.0,5.88267]
[1721663460520,0.08171699,3469.4,3469.1,2.88255]
[1721663460724,0.08171699,3469.4,3469.2,3.0]
[1721663461007,0.68648904,3469.4,3469.2,3.0]
[1721663461220,0.08171699,3469.4,3469.1,3.0]
[1721663461769,0.08171699,3469.4,3469.1,5.88254]
[1721663461999,0.08171699,3469.4,3469.2,2.8825]
[1721663462276,0.08171699,3469.4,3469.1,3.0]
[1721663462967,0.08171699,3469.4,3469.3,5.76484]
[1721663463286,0.08171699,3469.4,3469.3,2.88242]
[1721663463676,0.08171699,3469.4,3469.3,5.76484]
[1721663463909,0.08171699,3469.4,3469.3,2.88242]
[1721663464814,0.08171699,3469.4,3469.3,5.76484]
[1721663464974,0.08171699,3469.4,3469.3,6.641324]
[1721663465167,0.08171699,3469.4,3469.3,9.641324]
[1721663466827,0.08171699,3469.4,3469.3,5.88242]
[1721663466968,0.08171699,3469.4,3469.3,3.0]
[1721663467172,0.08171699,3469.4,3469.0,2.88263]
[1721663467401,0.68648904,3469.4,3469.1,3.0]
[1721663467709,0.08171699,3469.4,3469.1,5.88258]
[1721663467867,2.4302,3469.3,3468.9,2.88275]
[1721663468074,3.03497205,3469.3,3469.0,5.88266]
[1721663468383,2.4302,3469.3,3469.0,5.88266]
[1721663468567,3.03497205,3469.3,3469.0,5.88266]
[1721663468774,2.4302,3469.3,3469.0,3.0]
[1721663468979,3.03497205,3469.3,3469.0,3.0]
[1721663471209,4.10707364,3469.3,3469.0,3.0]
[1721663471422,4.10707364,3469.3,3468.7,2.88288]
[1721663471574,4.10707364,3469.3,3468.8,3.0]
[1721663472095,0.60477205,3469.2,3468.8,3.0]
[1721663472273,0.60477205,3469.2,3468.9,2.88267]
[1721663472479,3.03497205,3469.3,3469.0,3.0]
[1721663472681,3.03497205,3469.3,3469.0,2.88266]
[1721663473422,0.60477205,3469.3,3469.2,2.8825]
[1721663473629,0.68648904,3469.4,3469.2,2.8825]
[1721663473915,0.68648904,3469.4,3469.3,2.88242]
[1721663474279,0.68648904,3469.4,3469.3,5.76484]
[1721663474777,0.08171699,3469.4,3469.3,8.76484]
[1721663474979,0.08171699,3469.4,3469.3,9.92959]
[1721663476596,0.08171699,3469.4,3469.3,3.0]
[1721663476800,2.88242,3469.3,3468.5,4.38672855]
[1721663477105,2.88242,3469.3,3468.3,10.79328171]
[1721663477106,3.05099063,3469.1,3468.3,7.31]
[1721663477292,0.60499063,3469.0,3468.5,2.88301]
[1721663477692,0.60499063,3469.0,3468.3,7.31]
[1721663477693,0.60499063,3469.0,3468.7,2.88291]
[1721663478425,3.05099063,3469.1,3468.7,2.88285]
[1721663478595,0.60499063,3469.0,3468.7,2.88285]
[1721663479226,0.60499063,3469.0,3468.5,5.76608]
[1721663479395,0.60499063,3469.0,3468.6,3.0]
[1721663479596,3.48780063,3468.9,3468.2,2.88333]
[1721663479814,0.60499063,3468.6,3467.7,8.81401201]
[1721663480022,0.60499063,3468.6,3467.4,0.90012257]
[1721663480023,0.60499063,3468.5,3467.4,0.60008171]
[1721663480193,0.60499063,3468.5,3467.2,3.40460344]
[1721663480194,0.60499063,3468.5,3468.0,2.88344]
[1721663480529,3.01509063,3468.6,3468.1,2.88337]
[1721663482079,3.01509063,3468.6,3468.2,2.88332]
[1721663482278,2.4101,3468.6,3468.2,2.88332]
[1721663482482,2.4101,3468.6,3468.0,5.76689]
[1721663482723,2.4101,3468.6,3468.1,3.0]
[1721663483484,2.4101,3468.6,3468.1,5.88342]
[1721663483886,2.4101,3468.6,3468.1,3.0]
[1721663484924,2.4101,3468.6,3468.1,5.88337]
[1721663485785,2.4101,3468.6,3468.2,2.88333]
[1721663486425,2.4101,3468.6,3468.1,5.88342]
[1721663486727,2.4101,3468.6,3468.3,2.8832]
[1721663486907,2.4101,3468.6,3468.2,2.88329]
[1721663487116,0.60499063,3468.8,3468.1,3.0]
[1721663487117,0.60499063,3468.8,3468.3,2.88321]
[1721663487284,0.60499063,3468.8,3468.4,2.88316]
[1721663487481,0.60499063,3468.8,3468.2,2.88326]
[1721663487687,0.60499063,3468.8,3468.4,2.88311]
[1721663488308,0.60499063,3468.9,3468.4,2.88311]
[1721663488485,0.60499063,3468.8,3468.4,2.88311]
[1721663488684,3.48777063,3468.9,3468.3,2.88325]
[1721663488888,0.60499063,3468.8,3468.1,3.0]
[1721663489188,2.88294,3468.7,3468.2,2.88333]
[1721663489388,3.48783063,3468.8,3468.2,2.88333]
[1721663489786,3.48783063,3468.8,3468.1,5.88342]
[1721663489988,2.3361,3468.6,3468.1,3.0]
[1721663490188,0.82699806,3468.5,3468.0,2.88346]
[1721663490528,2.3361,3468.6,3468.1,3.0]
[1721663490825,2.3361,3468.6,3468.1,5.8834]
[1721663490997,2.3361,3468.6,3468.1,5.88336]
[1721663491203,2.3361,3468.6,3468.2,2.88329]
[1721663492826,2.3361,3468.6,3468.1,5.88341]
[1721663493016,2.3361,3468.6,3468.2,2.88333]
[1721663493396,2.3361,3468.6,3468.1,5.88342]
[1721663493590,2.3361,3468.6,3468.2,2.88331]
[1721663494125,5.2191,3468.6,3468.1,3.0]
[1721663494329,2.88309,3468.5,3468.1,3.0]
[1721663494518,5.2191,3468.6,3468.1,3.0]
[1721663494901,5.76625,3468.5,3468.1,3.0]
[1721663495105,5.76625,3468.5,3468.0,3.0]
[1721663495106,2.8831,3468.5,3468.0,3.0]
[1721663495304,2.8831,3468.5,3467.6,2.8838]
[1721663495305,5.32933,3468.3,3467.6,2.8838]
[1721663495514,2.88334,3468.2,3467.6,2.8838]
[1721663496291,2.446,3467.9,3467.4,2.88396]
[1721663496493,3.220828,3467.9,3467.4,2.88394]
[1721663496723,5.32959,3467.9,3467.2,2.88408]
[1721663496911,2.88367,3467.8,3467.2,2.88408]
[1721663497317,2.4187,3467.4,3466.4,0.45209873]
[1721663497500,2.4187,3467.4,3466.2,2.88498]
[1721663497705,2.4187,3467.4,3466.9,2.88441]
[1721663497940,2.4187,3467.4,3467.0,2.88433]
[1721663498292,5.30271,3467.4,3466.8,2.88443]
[1721663498928,3.481958,3467.4,3466.4,3.0]
[1721663499230,2.4187,3467.4,3466.4,2.88477]
[1721663499445,2.446,3467.5,3467.1,2.8842]
[1721663499790,2.446,3467.5,3466.9,2.88438]
[1721663499791,5.32999,3467.5,3466.9,2.88438]
[1721663499991,5.32999,3467.5,3466.7,2.88453]
[1721663499992,2.8841,3467.3,3466.7,2.88452]
[1721663500308,2.3033,3467.2,3466.5,5.88475]
[1721663500630,5.18752,3467.2,3466.6,2.88466]
[1721663500790,2.446,3467.1,3466.7,2.88458]
[1721663500987,2.446,3467.1,3466.7,2.88452]
[1721663501243,2.446,3467.5,3466.7,0.588452]
[1721663501391,5.18714,3467.6,3467.3,2.884]
[1721663501392,2.3033,3467.6,3467.3,2.884]
[1721663501597,2.446,3467.9,3467.1,2.88419]
[1721663501804,2.88371,3467.8,3467.1,2.88419]
[1721663502223,2.88371,3467.8,3467.2,2.88416]
[1721663502610,2.88371,3467.8,3467.2,2.88411]
[1721663504110,5.76744,3467.8,3467.2,2.88411]
[1721663504394,2.88371,3467.8,3467.2,2.88411]
[1721663504689,2.88371,3467.8,3467.0,2.88428]
[1721663504690,2.88376,3467.7,3467.1,2.88425]
[1721663505097,2.446,3467.9,3466.8,2.88442]
[1721663505297,2.395,3467.7,3466.9,3.0]
[1721663505490,2.446,3467.5,3466.8,2.88444]
[1721663505694,2.446,3467.5,3466.9,3.0]
[1721663505936,2.446,3467.5,3467.0,2.88433]
[1721663506384,5.32992,3467.5,3466.9,5.88441]
[1721663506674,2.88401,3467.4,3466.9,3.0]
[1721663509247,3.554373,3467.5,3466.9,3.0]
[1721663509476,2.446,3467.5,3467.0,2.88429]
[1721663509831,2.88388,3467.6,3467.0,2.88429]
[1721663510128,5.76779,3467.6,3467.0,2.88429]
[1721663510332,2.395,3467.7,3466.9,5.88441]
[1721663510333,2.88397,3467.5,3466.9,5.88441]
[1721663511238,2.884,3467.4,3466.9,3.0]
[1721663511466,2.884,3467.4,3466.8,3.0]
[1721663511990,2.884,3467.4,3466.8,5.88449]
[1721663512270,2.2704,3467.2,3466.8,3.0]
[1721663512473,3.030449,3467.2,3466.5,2.8847]
[1721663512670,2.88431,3467.1,3466.5,2.8847]
[1721663512877,5.15462,3467.2,3466.5,2.8847]
[1721663513057,5.15462,3467.2,3466.6,2.88466]
[1721663513386,2.2704,3467.2,3466.7,2.88457]
[1721663513546,2.351,3467.6,3466.9,2.88436]
[1721663513731,5.23484,3467.6,3467.0,2.88429]
[1721663513936,2.351,3467.6,3467.0,2.88429]
[1721663514142,2.88397,3467.5,3466.9,2.88441]
[1721663514379,2.88401,3467.4,3466.9,2.88441]
[1721663514565,2.351,3467.6,3466.9,2.88441]
[1721663514770,3.166574,3467.6,3466.9,2.88441]
[1721663515287,2.88394,3467.5,3467.0,2.88433]
[1721663515582,2.88394,3467.5,3466.9,2.88442]
[1721663515748,2.88394,3467.5,3467.0,2.88432]
[1721663516382,6.050414,3467.6,3467.1,2.88424]
[1721663516682,3.166574,3467.6,3467.2,2.8841]
[1721663517242,3.166574,3467.6,3466.2,3.0]
[1721663517243,6.050414,3467.6,3467.1,2.88425]
[1721663517478,6.050414,3467.6,3466.9,2.88439]
[1721663517479,0.9409034,3467.5,3466.9,2.88439]
[1721663517678,3.166574,3467.6,3467.0,2.88432]
[1721663517679,2.351,3467.6,3467.0,2.88432]
[1721663517889,5.23488,3467.6,3467.0,2.88432]
[1721663518183,8.11879,3467.6,3467.0,2.88432]
[1721663518341,5.23488,3467.6,3467.0,2.88429]
[1721663518541,5.23488,3467.6,3467.1,2.88425]
[1721663519795,2.351,3467.6,3467.0,2.88426]
[1721663519997,6.291294,3467.6,3467.0,2.88426]
[1721663520157,5.23484,3467.6,3467.0,2.88426]
[1721663520359,2.88397,3467.5,3466.9,2.88441]
[1721663520860,5.23484,3467.6,3467.0,2.8843]
[1721663521057,5.23484,3467.6,3467.1,2.88425]
[1721663521283,3.407457,3467.6,3467.1,2.88425]
[1721663521794,6.291307,3467.6,3467.1,2.88425]
[1721663521953,3.407457,3467.6,3467.1,2.88419]
[1721663522158,3.407457,3467.6,3467.1,2.88422]
[1721663522469,2.88397,3467.5,3466.4,2.8848]
[1721663522676,5.23487,3467.6,3467.1,2.88424]
[1721663523488,5.23487,3467.6,3467.0,2.88433]
[1721663523861,2.88392,3467.5,3466.9,2.88441]
[1721663524058,5.23484,3467.6,3467.0,2.88433]
[1721663524305,6.35179606,3467.6,3467.0,2.88433]
[1721663524453,6.35179606,3467.6,3467.0,5.76862]
[1721663524657,6.35179606,3467.6,3467.0,5.76855]
[1721663525158,6.35179606,3467.6,3467.0,2.88426]
[1721663525460,6.35179606,3467.6,3466.9,2.88441]
[1721663525659,2.351,3467.6,3467.4,2.88392]
[1721663525992,1.5085296,3468.2,3467.4,2.88392]
[1721663525993,0.60499063,3468.4,3468.3,2.88325]
[1721663526197,0.60499063,3468.6,3467.8,2.88363]
[1721663526371,2.3862,3468.7,3468.3,2.88317]
[1721663526568,2.3862,3468.7,3468.4,2.88316]
[1721663526902,8.22715807,3469.2,3467.9,0.288363]
[1721663526903,0.60499063,3469.1,3467.9,0.288363]
[1721663527105,0.68670762,3469.4,3469.2,2.88244]
[1721663527409,0.68670762,3469.4,3469.3,2.88242]
[1721663527410,0.08171699,3469.4,3469.3,2.88242]
[1721663527556,0.08171699,3469.4,3469.2,2.88249]
[1721663528079,0.08171699,3469.4,3469.3,2.88242]
[1721663528458,0.08171699,3469.4,3469.1,2.88258]
[1721663528692,0.08171699,3469.4,3469.0,2.88262]
[1721663528900,0.06051839,3469.3,3469.0,2.88262]
[1721663529106,0.06051839,3469.3,3469.1,2.88259]
[1721663530030,0.06051839,3469.3,3469.0,2.88267]
[1721663530186,0.06051839,3469.3,3469.1,2.88258]
[1721663530524,0.06051839,3469.3,3468.9,5.76544]
[1721663530680,0.06051839,3469.3,3469.0,2.88265]
[1721663531079,0.06051839,3469.3,3469.1,2.88259]
[1721663531511,0.06051839,3469.3,3469.1,2.88251]
[1721663531711,0.06051839,3469.3,3469.2,2.8825]
[1721663532132,0.06051839,3469.3,3469.0,2.88266]
[1721663532280,0.06051839,3469.3,3469.0,2.8826]
[1721663532480,0.06051839,3469.3,3469.0,2.88265]
[1721663532924,0.06051839,3469.3,3469.1,2.88257]
[1721663533097,0.06051839,3469.3,3469.2,2.8825]
[1721663533296,0.06051839,3469.3,3469.2,5.765]
[1721663533519,0.06051839,3469.3,3469.2,0.5765]
[1721663533830,2.50651839,3469.3,3468.4,2.88315]
[1721663533986,2.50651839,3469.3,3468.6,2.88295]
[1721663533987,2.88253,3469.2,3468.6,2.88295]
[1721663534331,2.50651839,3469.3,3468.8,2.88279]
[1721663534518,0.06051839,3469.3,3468.8,2.88279]
[1721663535123,0.06051839,3469.3,3467.8,5.25131]
[1721663535124,2.88264,3469.1,3468.5,2.88307]
[1721663535339,3.09719093,3469.3,3468.4,2.88312]
[1721663535340,3.09719093,3469.3,3468.6,2.883]
[1721663535811,2.88256,3469.2,3468.6,2.883]
[1721663536323,5.76514,3469.2,3468.6,2.883]
[1721663536553,2.88256,3469.2,3468.6,2.883]
[1721663536721,5.76514,3469.2,3468.6,2.883]
[1721663536916,0.89440479,3469.2,3468.2,2.88329]
[1721663537240,0.89440479,3469.2,3468.1,3.0]
[1721663537241,5.32879,3468.9,3468.1,3.0]
[1721663537465,5.32879,3468.9,3468.2,2.88329]
[1721663537742,2.88293,3468.7,3468.1,5.88338]
[1721663538040,5.32879,3468.9,3468.0,2.88349]
[1721663538041,2.88304,3468.6,3468.0,2.88349]
[1721663538564,2.88334,3468.2,3467.6,2.88381]
[1721663538708,3.415739,3468.8,3467.2,2.8841]
[1721663538709,2.446,3468.1,3467.2,2.8841]
[1721663539057,2.3818,3468.3,3467.8,2.88361]
[1721663539851,1.13786963,3468.8,3468.2,2.88329]
[1721663539852,0.532879,3468.8,3468.2,2.88329]
[1721663540343,0.60499063,3469.1,3468.1,0.05766673]
[1721663540508,0.60499063,3469.1,3468.5,2.88308]
[1721663540509,2.88259,3469.1,3468.5,2.88308]
[1721663541232,2.88269,3469.0,3468.5,2.88308]
[1721663541747,0.06051839,3469.3,3468.8,2.88279]
[1721663542142,0.06051839,3469.3,3468.8,2.88277]
[1721663542565,0.06051839,3469.3,3469.0,2.88263]
[1721663543421,0.06051839,3469.3,3469.0,2.8826]
[1721663543623,0.06051839,3469.3,3469.2,2.8825]
[1721663544939,0.06051839,3469.3,3469.2,5.765]
[1721663549368,0.06051839,3469.3,3469.2,2.8825]
[1721663549573,0.06051839,3469.3,3469.1,2.88258]
[1721663549930,0.06051839,3469.3,3469.2,2.8825]
[1721663550156,0.06051839,3469.3,3469.2,5.765]
[1721663550380,0.06051839,3469.3,3469.2,3.459]
[1721663551337,0.06051839,3469.3,3469.2,6.3415]
[1721663551550,0.06051839,3469.3,3469.2,3.459]
[1721663551885,0.06051839,3469.3,3469.2,6.3415]
[1721663553892,0.06051839,3469.3,3469.2,9.224]
[1721663554046,0.06051839,3469.3,3469.2,12.774]
[1721663554487,0.06051839,3469.3,3469.2,15.6565]
[1721663554848,0.06051839,3469.3,3469.2,12.774]
[1721663555059,0.06051839,3469.3,3469.2,15.6565]
[1721663555264,1e-08,3469.3,3469.2,15.6565]
[1721663555499,7e-06,3469.4,3469.3,14.4121]
[1721663555697,7.32,3470.8,3469.3,20.28875]
[1721663555999,9.6795,3471.2,3470.3,5.76318]
[1721663556700,12.56034,3471.2,3470.3,5.76318]
[1721663556877,9.6795,3471.2,3470.3,5.76318]
[1721663557060,9.6795,3471.2,3470.3,8.76318]
[1721663557262,9.6795,3471.2,3470.3,11.64477]
[1721663557500,9.6795,3471.2,3470.3,9.927657]
[1721663558593,2.88097,3471.1,3470.3,9.927657]
[1721663559021,9.6795,3471.2,3470.3,9.927657]
[1721663559022,12.56042,3471.2,3470.3,9.927657]
[1721663559418,2.88093,3471.1,3470.3,9.927657]
[1721663559620,9.6795,3471.2,3470.3,9.927657]
[1721663560177,12.56036,3471.2,3470.3,9.927657]
[1721663560419,9.6795,3471.2,3470.3,9.927657]
[1721663560995,12.56035,3471.2,3470.3,9.927657]
[1721663561209,2.88096,3471.1,3470.3,9.927657]
[1721663561415,2.88096,3471.1,3470.3,7.046067]
[1721663561714,9.6795,3471.2,3470.3,9.927657]
[1721663562831,9.6795,3471.2,3470.3,13.359247]
[1721663563203,9.6795,3471.2,3470.3,10.477657]
[1721663563583,12.56039,3471.2,3470.3,10.477657]
[1721663563836,12.56039,3471.2,3470.3,9.927657]
[1721663563837,2.88099,3471.1,3470.3,9.927657]
[1721663563989,2.88099,3471.1,3470.3,7.046067]
[1721663563990,2.88103,3471.0,3470.3,7.046067]
[1721663564334,2.8815,3470.5,3469.8,2.88197]
[1721663564511,5.43146402,3470.4,3469.6,2.88217]
[1721663564822,2.88172,3470.2,3469.6,2.88212]
[1721663565020,2.88168,3470.2,3469.4,2.88229]
[1721663565241,5.43146402,3470.4,3469.6,2.88211]
[1721663565401,5.43146402,3470.4,3469.8,2.88196]
[1721663565797,2.54993402,3470.4,3470.1,2.88175]
[1721663566227,0.05613402,3470.4,3470.1,2.88175]
[1721663566386,0.05613402,3470.4,3470.1,2.8817]
[1721663566935,0.05613402,3470.4,3470.0,2.88183]
[1721663567523,0.05613402,3470.4,3469.9,2.88191]
[1721663567723,0.05613402,3470.4,3469.9,2.88189]
[1721663567897,2.93768402,3470.4,3469.6,2.88215]
[1721663568094,0.05613402,3470.4,3469.8,2.88194]
[1721663568294,0.05613402,3470.4,3469.8,2.88195]
[1721663568557,0.05613402,3470.4,3469.9,2.88191]
[1721663568917,0.05613402,3470.4,3469.9,2.88187]
[1721663569203,0.05613402,3470.4,3469.8,2.88195]
[1721663569431,0.05613402,3470.4,3470.0,2.88179]
[1721663570831,0.05613402,3470.4,3470.1,2.88174]
[1721663571546,0.05613402,3470.4,3470.1,2.8817]
[1721663571719,0.05613402,3470.4,3470.3,2.88159]
[1721663572635,0.05613402,3470.4,3470.2,2.88167]
[1721663573345,0.05613402,3470.4,3470.1,0.28817]
[1721663573555,0.05613402,3470.4,3469.3,2.8824]
[1721663573706,0.05613402,3470.4,3470.0,2.88179]
[1721663574104,0.05613402,3470.4,3470.2,2.88167]
[1721663574310,0.05613402,3470.4,3470.1,2.88175]
[1721663574809,0.05613402,3470.4,3470.2,2.88167]
[1721663575153,0.05613402,3470.4,3470.0,2.88179]
[1721663575154,0.05613402,3470.4,3470.0,2.88177]
[1721663575411,0.05613402,3470.4,3470.1,2.88175]
[1721663575888,0.05613402,3470.4,3470.1,2.88171]
[1721663576460,0.05613402,3470.4,3469.9,2.88187]
[1721663576987,0.05613402,3470.4,3470.1,2.88176]
[1721663578177,0.05613402,3470.4,3470.3,2.88159]
[1721663578374,0.05613402,3470.4,3470.2,2.88167]
[1721663578688,0.05613402,3470.4,3470.2,2.88162]
[1721663579049,0.05613402,3470.4,3470.1,2.88175]
[1721663579248,0.05613402,3470.4,3470.2,2.88162]
[1721663580152,0.05613402,3470.4,3470.3,2.88159]
[1721663580354,0.05613402,3470.4,3470.2,2.88167]
[1721663580688,0.05613402,3470.4,3470.1,2.88175]
[1721663580875,0.05613402,3470.4,3469.8,2.88195]
[1721663581061,2.88165,3470.3,3469.7,2.88204]
[1721663581264,5.27467,3470.2,3469.6,2.88217]
[1721663581879,2.393,3470.2,3469.9,2.88188]
[1721663582055,2.393,3470.2,3469.7,2.88208]
[1721663582583,2.393,3470.2,3469.7,2.88203]
[1721663582784,2.393,3470.2,3469.8,2.88198]
[1721663582989,5.27471,3470.2,3469.6,2.88211]
[1721663583194,2.88184,3470.0,3469.4,2.88228]
[1721663583414,2.393,3470.2,3468.9,7.31]
[1721663583547,2.88213,3469.7,3469.1,2.88253]
[1721663583759,2.88206,3469.8,3469.0,2.8826]
[1721663583946,0.4895134,3470.1,3468.6,2.88293]
[1721663583947,2.88221,3469.6,3468.6,2.88293]
[1721663584194,2.88221,3469.6,3468.1,2.3998]
[1721663584493,2.3022,3469.7,3469.2,2.88246]
[1721663584664,2.3022,3469.7,3469.3,2.88241]
[1721663584988,2.3022,3469.7,3469.2,2.88249]
[1721663585188,2.3022,3469.7,3469.3,2.88241]
[1721663585350,2.3022,3469.7,3469.1,2.88251]
[1721663585850,2.3022,3469.7,3469.0,2.88261]
[1721663585851,5.18433,3469.7,3469.0,2.88261]
[1721663586051,5.18433,3469.7,3469.1,2.88252]
[1721663586251,2.3022,3469.7,3469.0,2.88261]
[1721663586453,2.3022,3469.7,3469.3,2.88241]
[1721663587196,2.3022,3469.7,3469.4,2.88232]
[1721663587556,2.3022,3469.7,3469.3,2.88241]
[1721663588311,2.3022,3469.7,3469.1,2.88254]
[1721663588467,2.3022,3469.7,3469.1,2.88252]
[1721663588673,5.18431,3469.7,3469.1,2.88252]
[1721663588977,5.78930063,3469.7,3469.1,5.76506]
[1721663589183,2.90719063,3469.7,3469.2,2.88249]
[1721663589951,2.90719063,3469.7,3469.3,2.88242]
[1721663590306,2.90719063,3469.7,3469.5,2.88221]
[1721663590307,2.3022,3469.7,3469.5,2.88221]
[1721663590506,2.3022,3469.7,3469.3,5.76473]
[1721663590669,2.3022,3469.7,3469.4,2.88232]
[1721663591006,2.3022,3469.7,3469.3,2.88235]
[1721663591186,0.60499063,3469.9,3469.4,0.288235]
[1721663591373,0.60499063,3469.9,3469.5,2.88221]
[1721663591701,0.60499063,3469.8,3469.3,2.88236]
[1721663591859,0.60499063,3469.8,3469.2,2.88245]
[1721663592054,0.60499063,3469.8,3469.3,2.88239]
[1721663592280,0.60499063,3469.8,3469.2,2.88245]
[1721663592488,0.60499063,3469.8,3469.3,2.8824]
[1721663592675,0.60499063,3469.8,3469.5,2.8822]
[1721663592903,0.60499063,3469.8,3469.4,2.88234]
[1721663593059,0.60499063,3469.9,3469.6,2.88216]
[1721663593504,0.60499063,3469.9,3469.4,5.76461]
[1721663593803,0.60499063,3469.9,3469.4,2.88227]
[1721663594187,0.60499063,3469.9,3469.3,0.576485]
[1721663594188,0.60499063,3469.9,3469.6,2.88211]
[1721663594359,0.60499063,3470.1,3469.9,2.88188]
[1721663594561,2.313,3470.2,3469.9,2.88188]